bitfinex/quotes_SOLUSD_20240603
["timestamp","ask_amount","ask_price","bid_price","bid_amount"]
[1717446317498,0.2,166.84,166.81,6.22]
[1717446318097,0.2,166.84,166.81,8.438]
[1717446318300,0.2,166.84,166.82,2.2179]
[1717446318827,0.2,166.84,166.81,8.438]
[1717446319216,0.2,166.84,166.81,2.218]
[1717446319512,0.2,166.84,166.8,2.2181]
[1717446319824,0.2,166.84,166.81,6.22]
[1717446320897,0.2,166.84,166.81,8.438]
[1717446322699,0.2,166.84,166.8,120.0]
[1717446323004,0.2,166.84,166.83,8.4378]
[1717446323201,0.2,166.84,166.83,2.2178]
[1717446331034,0.2,166.84,166.82,2.2178]
[1717446331232,0.2,166.84,166.82,8.4378]
[1717446331801,0.2,166.84,166.83,2.2178]
[1717446346022,0.2,166.84,166.83,8.4378]
[1717446346831,0.2,166.84,166.83,8.6078]
[1717446350646,2.2173,166.87,166.85,999.8]
[1717446353153,8.4373,166.87,166.85,999.8]
[1717446353362,2.2173,166.87,166.85,999.8]
[1717446353662,8.4373,166.87,166.85,999.8]
[1717446353831,2.2173,166.87,166.85,999.8]
[1717446354030,8.4373,166.87,166.85,999.8]
[1717446354231,2.2174,166.86,166.85,999.8]
[1717446360680,8.4374,166.86,166.85,999.8]
[1717446361183,13.0199,166.86,166.85,999.8]
[1717446363883,39.5499,166.86,166.85,999.8]
[1717446364094,48.4196,166.86,166.85,999.8]
[1717446366593,48.4196,166.86,166.85,998.0]
[1717446367458,48.4196,166.86,166.85,977.0]
[1717446368372,48.4196,166.86,166.85,975.0]
[1717446368887,48.4196,166.86,166.85,940.3]
[1717446369070,48.7596,166.86,166.85,940.3]
[1717446369261,48.7596,166.86,166.85,938.50010798]
[1717446369462,48.7596,166.86,166.85,936.70021596]
[1717446369869,48.7596,166.86,166.85,934.90032394]
[1717446370076,48.7596,166.86,166.85,933.10043192]
[1717446370278,101.46640376,166.86,166.85,811.70931242]
[1717446370473,101.46640376,166.86,166.85,776.3897083]
[1717446370871,107.68640376,166.86,166.85,774.59010418]
[1717446371205,107.68640376,166.86,166.85,772.79050006]
[1717446371392,107.68640376,166.86,166.85,770.99089594]
[1717446371779,115.17017799,166.86,166.85,769.19129182]
[1717446371988,115.17017799,166.86,166.85,767.3916877]
[1717446372374,108.95017799,166.86,166.85,765.59208358]
[1717446372684,108.95017799,166.86,166.85,763.79247946]
[1717446372871,108.95017799,166.86,166.85,665.58247946]
[1717446373272,108.95017799,166.86,166.85,663.78287534]
[1717446373463,108.95017799,166.86,166.85,661.98327122]
[1717446373865,108.95017799,166.86,166.85,660.18312723]
[1717446374069,108.95017799,166.86,166.85,658.38298324]
[1717446374510,108.95017799,166.86,166.85,656.58283925]
[1717446374790,108.95017799,166.86,166.85,654.78269526]
[1717446375015,108.95017799,166.86,166.85,652.98255127]
[1717446375387,108.95017799,166.86,166.85,642.18240728]
[1717446375788,108.95017799,166.86,166.85,640.38226329]
[1717446376006,108.95017799,166.86,166.85,638.5821193]
[1717446376400,108.95017799,166.86,166.85,636.78197531]
[1717446376714,126.93017799,166.86,166.85,501.81554421]
[1717446376896,168.85977848,166.86,166.85,468.29554421]
[1717446377206,168.85977848,166.86,166.85,466.49532823]
[1717446377512,168.85977848,166.86,166.85,464.69511225]
[1717446377513,173.77364802,166.86,166.85,464.69511225]
[1717446377710,173.77364802,166.86,166.85,462.89489627]
[1717446377911,137.78364802,166.86,166.85,462.89489627]
[1717446378102,131.56364802,166.86,166.85,461.09468029]
[1717446378416,137.78364802,166.86,166.85,459.29446431]
[1717446378624,137.78364802,166.86,166.85,457.49424833]
[1717446378988,137.78364802,166.86,166.85,455.69403235]
[1717446379329,137.78364802,166.86,166.85,453.89381637]
[1717446379490,137.78364802,166.86,166.85,452.09360039]
[1717446379824,137.78364802,166.86,166.85,450.29338441]
[1717446380191,137.78364802,166.86,166.85,448.49327643]
[1717446380392,137.78364802,166.86,166.85,446.69316845]
[1717446380797,137.78364802,166.86,166.85,444.89306047]
[1717446380992,119.80364802,166.86,166.85,443.09306047]
[1717446381320,119.80364802,166.86,166.85,441.29295249]
[1717446381321,114.88977848,166.86,166.85,441.29295249]
[1717446381730,114.88977848,166.86,166.85,439.49284451]
[1717446381892,114.88977848,166.86,166.85,416.49284451]
[1717446382092,114.88977848,166.86,166.85,414.69273653]
[1717446382622,114.88977848,166.86,166.85,412.89262855]
[1717446382825,114.88977848,166.86,166.85,411.09252057]
[1717446382987,114.88977848,166.86,166.85,409.29241259]
[1717446383316,114.88977848,166.86,166.85,407.4923766]
[1717446383625,114.88977848,166.86,166.85,405.69234061]
[1717446383914,114.88977848,166.86,166.85,403.89230462]
[1717446384327,114.88977848,166.86,166.85,402.09226863]
[1717446384501,114.88977848,166.86,166.85,400.29223264]
[1717446385005,114.88977848,166.86,166.85,398.49219665]
[1717446385210,114.88977848,166.86,166.85,396.69216066]
[1717446385398,114.88977848,166.86,166.85,394.89212467]
[1717446385809,114.88977848,166.86,166.85,393.09208868]
[1717446386028,114.88977848,166.86,166.85,391.29205269]
[1717446386334,114.88977848,166.86,166.85,389.4919087]
[1717446386698,114.88977848,166.86,166.85,387.69176471]
[1717446386924,114.88977848,166.86,166.85,385.89162072]
[1717446387226,114.88977848,166.86,166.85,384.09147673]
[1717446387523,114.88977848,166.86,166.85,382.29133274]
[1717446387723,114.88977848,166.86,166.85,365.27233278]
[1717446388097,114.88977848,166.86,166.85,363.47218879]
[1717446388323,114.88977848,166.86,166.85,361.6720448]
[1717446388819,99.44677848,166.86,166.85,359.87190081]
[1717446389022,99.44677848,166.86,166.85,358.07175682]
[1717446389321,99.44677848,166.86,166.85,356.27161283]
[1717446389492,99.44677848,166.86,166.85,354.47157684]
[1717446389688,99.44677848,166.86,166.85,340.47157684]
[1717446390208,99.44677848,166.86,166.85,338.67154085]
[1717446390408,99.44677848,166.86,166.85,336.87150486]
[1717446390611,99.44677848,166.86,166.85,335.07146887]
[1717446390804,117.42677848,166.86,166.85,326.07146887]
[1717446391312,117.42677848,166.86,166.85,324.27143288]
[1717446391516,117.42677848,166.86,166.85,322.47139689]
[1717446391717,117.42677848,166.86,166.85,320.6713609]
[1717446392102,117.42677848,166.86,166.85,318.87132491]
[1717446392323,117.42677848,166.86,166.85,318.17132491]
[1717446392694,117.42677848,166.86,166.85,317.17132491]
[1717446393010,117.42677848,166.86,166.85,294.17132491]
[1717446393192,117.42677848,166.86,166.85,293.17132491]
[1717446393396,117.42677848,166.86,166.85,292.17132491]
[1717446393810,117.42677848,166.86,166.85,291.17132491]
[1717446394007,117.42677848,166.86,166.85,290.17132491]
[1717446394198,117.42677848,166.86,166.85,289.17132491]
[1717446394604,117.42677848,166.86,166.85,288.17132491]
[1717446394806,117.42677848,166.86,166.85,287.17132491]
[1717446395207,117.42677848,166.86,166.85,286.17132491]
[1717446395521,122.33038094,166.86,166.85,285.17132491]
[1717446395713,122.33038094,166.86,166.85,283.37118092]
[1717446396106,122.33038094,166.86,166.85,281.57103693]
[1717446396320,122.33038094,166.86,166.85,279.77089294]
[1717446396702,122.33038094,166.86,166.85,277.97074895]
[1717446396925,122.33038094,166.86,166.85,276.17060496]
[1717446397424,122.33038094,166.86,166.85,274.37046097]
[1717446397628,122.33038094,166.86,166.85,272.57031698]
[1717446397827,122.33038094,166.86,166.85,270.77017299]
[1717446398129,122.33038094,166.86,166.85,268.970029]
[1717446398431,122.33038094,166.86,166.85,267.16988501]
[1717446398809,122.33038094,166.86,166.85,265.36974102]
[1717446399117,122.33038094,166.86,166.85,263.56948901]
[1717446399331,122.33038094,166.86,166.85,261.769237]
[1717446399711,122.33038094,166.86,166.85,259.96898499]
[1717446399936,122.33038094,166.86,166.85,258.16873298]
[1717446400312,122.33038094,166.86,166.85,256.36848097]
[1717446400617,122.33038094,166.86,166.85,254.56822896]
[1717446400816,122.33038094,166.86,166.85,252.76797695]
[1717446401038,122.33038094,166.86,166.85,244.76797695]
[1717446401256,122.33038094,166.86,166.85,242.96772494]
[1717446401531,122.33038094,166.86,166.85,240.96772494]
[1717446401736,122.33038094,166.86,166.85,239.16747293]
[1717446401939,122.33038094,166.86,166.85,237.36722092]
[1717446402115,117.74788094,166.86,166.85,237.36722092]
[1717446402431,117.74788094,166.86,166.85,235.56678891]
[1717446402632,117.74788094,166.86,166.85,233.7663569]
[1717446402827,117.74788094,166.86,166.85,231.96592489]
[1717446403137,117.74788094,166.86,166.85,230.16549288]
[1717446403508,117.74788094,166.86,166.85,228.36506087]
[1717446403709,117.74788094,166.86,166.85,226.56462886]
[1717446404224,117.74788094,166.86,166.85,222.96376484]
[1717446404433,117.74788094,166.86,166.85,219.34076484]
[1717446404723,117.74788094,166.86,166.85,217.54033283]
[1717446405144,117.74788094,166.86,166.85,215.73990082]
[1717446405344,117.74788094,166.86,166.85,214.73990082]
[1717446405643,117.74788094,166.86,166.85,213.73990082]
[1717446406034,117.74788094,166.86,166.85,212.73990082]
[1717446406345,117.74788094,166.86,166.85,211.73990082]
[1717446406949,117.74788094,166.86,166.85,209.45190082]
[1717446407258,117.74788094,166.86,166.85,208.45190082]
[1717446407627,117.74788094,166.86,166.85,207.45190082]
[1717446407931,153.73788094,166.86,166.85,187.06673882]
[1717446408124,180.51628094,166.86,166.85,8.34931957]
[1717446408320,2.219,166.74,166.73,21.3157]
[1717446414641,2.219,166.74,166.73,27.5357]
[1717446416146,11.0919,166.79,166.73,27.5357]
[1717446416147,2.2186,166.77,166.73,27.5357]
[1717446416357,2.2186,166.77,166.75,22.7614]
[1717446416546,2.2186,166.77,166.76,22.7614]
[1717446418030,2.2186,166.77,166.76,6.0965]
[1717446418255,2.2188,166.76,166.73,6.0965]
[1717446418532,2.2188,166.76,166.75,6.0965]
[1717446419553,2.2188,166.76,166.75,12.3165]
[1717446419742,2.2188,166.76,166.75,28.9814]
[1717446420254,2.2188,166.76,166.75,22.7614]
[1717446420454,2.2188,166.76,166.75,28.9814]
[1717446424866,2.2188,166.76,166.75,6.0965]
[1717446425040,2.2188,166.76,166.75,12.3165]
[1717446428742,2.2188,166.76,166.75,6.0965]
[1717446433641,2.2188,166.76,166.75,12.3165]
[1717446433857,2.2188,166.76,166.75,6.0965]
[1717446434070,2.2188,166.76,166.75,12.3165]
[1717446436865,2.2188,166.76,166.71,23.9456]
[1717446437045,2.2188,166.76,166.74,6.22]
[1717446437247,2.2188,166.75,166.74,6.22]
[1717446437863,2.2188,166.75,166.74,12.6679]
[1717446443362,2.219,166.74,166.72,12.5928]
[1717446443547,4.4376,166.76,166.72,6.3728]
[1717446443737,2.2191,166.73,166.71,0.2]
[1717446444870,2.2191,166.73,166.71,6.42]
[1717446446775,2.2191,166.73,166.72,6.22]
[1717446446948,2.2192,166.72,166.71,0.2]
[1717446447153,2.2192,166.72,166.71,6.42]
[1717446447644,2.2192,166.72,166.71,0.2]
[1717446447863,2.2192,166.72,166.71,6.42]
[1717446448466,2.2192,166.72,166.71,0.2]
[1717446462381,8.4392,166.72,166.71,0.2]
[1717446463081,2.2192,166.72,166.71,0.2]
[1717446466799,8.4392,166.72,166.71,0.2]
[1717446468589,2.2192,166.72,166.71,0.2]
[1717446473203,6.6577,166.72,166.71,0.2]
[1717446480210,13.3155,166.72,166.71,0.2]
[1717446480516,28.4126,166.72,166.71,0.2]
[1717446481309,22.194,166.71,166.7,1000.0]
[1717446481512,28.414,166.71,166.7,983.11342846]
[1717446486582,28.414,166.71,166.7,960.11342846]
[1717446486786,28.414,166.71,166.7,937.11342846]
[1717446486787,28.754,166.71,166.7,937.11342846]
[1717446490112,28.754,166.71,166.7,935.11342846]
[1717446490520,28.754,166.71,166.7,932.11342846]
[1717446491120,22.534,166.71,166.7,932.11342846]
[1717446491319,28.754,166.71,166.7,932.11342846]
[1717446492004,28.754,166.71,166.7,931.11342846]
[1717446492203,28.754,166.71,166.7,926.61342846]
[1717446493900,28.754,166.71,166.7,916.91342846]
[1717446494526,28.754,166.71,166.7,898.91342846]
[1717446494826,36.80780947,166.71,166.7,891.06142846]
[1717446495001,88.70119084,166.71,166.7,891.06142846]
[1717446496204,88.70119084,166.71,166.7,890.06142846]
[1717446496615,88.70119084,166.71,166.7,888.25969915]
[1717446496818,88.70119084,166.71,166.7,886.45796984]
[1717446497114,88.70119084,166.71,166.7,872.25796984]
[1717446497320,88.70119084,166.71,166.7,858.95613234]
[1717446497496,88.70119084,166.71,166.7,857.15513234]
[1717446497910,88.70119084,166.71,166.7,855.35413234]
[1717446498230,88.70119084,166.71,166.7,853.55313234]
[1717446498436,88.70119084,166.71,166.7,851.75129484]
[1717446498803,88.70119084,166.71,166.7,849.94945734]
[1717446499127,88.70119084,166.71,166.7,848.14761984]
[1717446499304,88.70119084,166.71,166.7,846.34578234]
[1717446501103,93.28369084,166.71,166.7,846.34578234]
[1717446501921,111.26369084,166.71,166.7,846.34578234]
[1717446502124,150.60555759,166.71,166.7,749.13578234]
[1717446502326,169.27369133,166.71,166.7,710.87238681]
[1717446503221,135.21329133,166.71,166.7,710.87238681]
[1717446503420,153.19329133,166.71,166.7,710.87238681]
[1717446503596,135.21329133,166.71,166.7,710.87238681]
[1717446504305,128.99329133,166.71,166.7,710.87238681]
[1717446504621,135.21329133,166.71,166.7,710.87238681]
[1717446504826,135.21329133,166.71,166.7,638.18238681]
[1717446505031,169.22989133,166.71,166.7,638.18238681]
[1717446505402,169.22989133,166.71,166.7,613.66238681]
[1717446505922,49.30079133,166.71,166.7,613.66238681]
[1717446506232,71.86329133,166.71,166.7,613.66238681]
[1717446507215,117.20329133,166.71,166.7,613.66238681]
[1717446509928,153.19329133,166.71,166.7,613.66238681]
[1717446516358,148.61079133,166.71,166.7,613.66238681]
[1717446516852,88.42079133,166.71,166.7,613.66238681]
[1717446517026,49.47079133,166.71,166.7,613.66238681]
[1717446518238,49.64079133,166.71,166.7,613.66238681]
[1717446518455,94.64079133,166.71,166.7,613.66238681]
[1717446522060,148.61079133,166.71,166.7,613.66238681]
[1717446522261,153.19329133,166.71,166.7,516.45238681]
[1717446524570,175.52728822,166.71,166.7,516.09238681]
[1717446525175,175.52728822,166.71,166.7,418.88238681]
[1717446525343,153.19329133,166.71,166.7,418.88238681]
[1717446526876,169.54849133,166.71,166.7,418.88238681]
[1717446531574,153.19329133,166.71,166.7,418.88238681]
[1717446534248,153.19329133,166.71,166.7,321.31238681]
[1717446534678,159.42062832,166.71,166.7,321.31238681]
[1717446535175,154.83812832,166.71,166.7,321.31238681]
[1717446535352,181.77639092,166.71,166.7,321.31238681]
[1717446545367,154.83812832,166.71,166.7,321.31238681]
[1717446545571,181.77639092,166.71,166.7,321.31238681]
[1717446546990,181.77639092,166.71,166.7,223.92238681]
[1717446547487,181.77639092,166.71,166.7,223.74238681]
[1717446554937,175.55639092,166.71,166.7,223.74238681]
[1717446555239,181.77639092,166.71,166.7,223.74238681]
[1717446557531,199.08143218,166.71,166.7,223.74238681]
[1717446557912,199.08143218,166.71,166.7,223.56238681]
[1717446558110,181.77639092,166.71,166.7,223.56238681]
[1717446560332,199.08084232,166.71,166.7,223.56238681]
[1717446562310,198.91084232,166.71,166.7,223.56238681]
[1717446563539,181.60639092,166.71,166.7,223.56238681]
[1717446563719,181.77639092,166.71,166.7,223.56238681]
[1717446567140,175.83679043,166.71,166.7,223.56238681]
[1717446567343,182.05083536,166.71,166.7,223.56238681]
[1717446568238,175.83083536,166.71,166.7,223.56238681]
[1717446568419,182.05083536,166.71,166.7,223.56238681]
[1717446570937,199.35375513,166.71,166.7,223.56238681]
[1717446571245,182.05083536,166.71,166.7,223.56238681]
[1717446571445,199.35375513,166.71,166.7,223.56238681]
[1717446571823,182.05083536,166.71,166.7,223.56238681]
[1717446572328,199.35374194,166.71,166.7,223.56238681]
[1717446575954,182.05083536,166.71,166.7,223.56238681]
[1717446584058,175.15745399,166.71,166.7,223.56238681]
[1717446584352,182.05083536,166.71,166.7,223.56238681]
[1717446595346,173.99702589,166.71,166.7,223.56238681]
[1717446595555,182.05083536,166.71,166.7,223.56238681]
[1717446595865,183.43774005,166.71,166.7,223.56238681]
[1717446603990,183.43774005,166.71,166.7,223.45041265]
[1717446608254,189.43374005,166.71,166.7,31.62041265]
[1717446608481,22.206,166.62,166.61,6.5974]
[1717446608669,22.206,166.62,166.61,21.6148]
[1717446610386,22.546,166.62,166.61,21.6148]
[1717446610689,22.376,166.62,166.61,21.6148]
[1717446610986,22.206,166.62,166.61,21.6148]
[1717446613585,15.5394,166.62,166.61,27.8348]
[1717446613890,22.2012,166.62,166.61,27.8348]
[1717446630793,22.2012,166.62,166.61,21.6148]
[1717446631094,22.2012,166.62,166.61,27.8348]
[1717446634217,22.2012,166.62,166.61,21.6148]
[1717446634402,22.2012,166.62,166.61,27.8348]
[1717446634595,22.2012,166.62,166.61,21.6148]
[1717446634796,22.2012,166.62,166.61,27.8348]
[1717446634996,22.2012,166.62,166.61,21.6148]
[1717446635311,22.2012,166.62,166.61,6.5974]
[1717446635531,22.2012,166.62,166.61,12.8174]
[1717446636028,22.2012,166.62,166.61,0.2]
[1717446636197,30.25500947,166.62,166.61,0.2]
[1717446636597,37.14839084,166.62,166.61,0.2]
[1717446637828,37.14839084,166.62,166.61,6.42]
[1717446638035,22.2012,166.62,166.61,6.42]
[1717446639232,22.2012,166.62,166.61,0.2]
[1717446639827,22.2012,166.62,166.61,6.42]
[1717446640824,22.2012,166.62,166.61,0.2]
[1717446641017,22.2012,166.62,166.61,6.42]
[1717446643427,22.2012,166.62,166.61,0.2]
[1717446643641,22.2012,166.62,166.61,6.42]
[1717446644302,22.2012,166.62,166.61,0.2]
[1717446644542,22.2012,166.62,166.61,6.42]
[1717446645139,22.2012,166.62,166.61,0.2]
[1717446645299,22.2012,166.62,166.61,6.42]
[1717446646633,22.2012,166.62,166.61,0.2]
[1717446647027,22.2012,166.62,166.61,6.42]
[1717446647444,22.2012,166.62,166.61,0.2]
[1717446647644,22.2012,166.62,166.61,6.42]
[1717446651342,22.2012,166.62,166.61,0.2]
[1717446651505,22.2012,166.62,166.61,6.42]
[1717446652323,22.2012,166.62,166.61,0.2]
[1717446653616,22.2012,166.62,166.61,6.42]
[1717446655635,2.2216,166.55,166.52,22.122]
[1717446655817,2.2216,166.55,166.51,0.2]
[1717446655818,2.2216,166.55,166.54,31.1]
[1717446656023,2.2216,166.55,166.54,53.222]
[1717446656756,2.2216,166.55,166.54,28.342]
[1717446658414,2.2216,166.55,166.54,22.122]
[1717446658616,2.2216,166.55,166.54,28.342]
[1717446659728,2.2216,166.55,166.54,34.562]
[1717446661045,2.2216,166.55,166.54,22.122]
[1717446661347,2.2216,166.55,166.54,28.342]
[1717446661737,2.2216,166.55,166.54,12.7677]
[1717446662328,2.2216,166.55,166.54,6.5477]
[1717446662529,2.2216,166.55,166.54,12.7677]
[1717446666330,2.2216,166.55,166.54,6.22]
[1717446666644,2.2218,166.53,166.51,0.2]
[1717446666828,2.2218,166.53,166.52,12.8376]
[1717446677756,12.78543701,166.62,166.51,0.2]
[1717446677757,2.2219,166.52,166.51,0.2]
[1717446677966,2.2219,166.52,166.51,6.42]
[1717446681066,2.2219,166.52,166.51,12.8198]
[1717446681389,6.6651,166.54,166.52,21.7377]
[1717446681390,2.2217,166.54,166.52,21.7377]
[1717446681596,2.2217,166.54,166.53,12.6198]
[1717446681765,2.2217,166.54,166.53,6.3998]
[1717446681957,2.2217,166.54,166.53,12.6198]
[1717446682162,2.2217,166.54,166.53,6.22]
[1717446682382,2.2218,166.53,166.51,0.2]
[1717446682586,2.2218,166.53,166.52,6.22]
[1717446685595,2.2218,166.53,166.51,0.2]
[1717446685796,2.2218,166.53,166.52,6.22]
[1717446685976,2.2218,166.53,166.51,0.2]
[1717446686176,2.2218,166.53,166.52,6.22]
[1717446689581,2.2219,166.52,166.51,0.2]
[1717446689780,2.2219,166.52,166.51,6.42]
[1717446693273,2.2219,166.52,166.51,0.2]
[1717446693474,2.2219,166.52,166.51,6.42]
[1717446694291,2.2219,166.52,166.51,0.2]
[1717446694603,2.2219,166.52,166.51,6.42]
[1717446699603,2.2219,166.52,166.51,0.2]
[1717446699788,2.2219,166.52,166.51,6.42]
[1717446702587,2.2219,166.52,166.51,0.2]
[1717446702812,2.2219,166.52,166.51,6.42]
[1717446703392,2.2219,166.52,166.51,0.2]
[1717446703688,2.2219,166.52,166.51,6.42]
[1717446707105,2.2219,166.52,166.51,0.2]
[1717446707296,2.2219,166.52,166.51,6.42]
[1717446708306,2.2219,166.52,166.51,0.2]
[1717446708625,2.2219,166.52,166.51,6.42]
[1717446710121,2.2219,166.52,166.51,0.2]
[1717446710122,22.2194,166.52,166.51,0.2]
[1717446710321,44.3784837,166.52,166.51,0.2]
[1717446710519,44.7184837,166.52,166.51,0.2]
[1717446711321,2.2228,166.46,166.44,0.833678]
[1717446711517,2.2228,166.46,166.45,6.22]
[1717446717926,2.2228,166.45,166.44,0.833678]
[1717446718216,2.2228,166.45,166.44,7.053678]
[1717446718825,2.2228,166.45,166.44,0.833678]
[1717446719026,2.2228,166.45,166.44,7.053678]
[1717446727114,2.2228,166.45,166.44,0.833678]
[1717446727316,2.2228,166.45,166.44,7.053678]
[1717446729729,2.2228,166.45,166.44,0.833678]
[1717446729938,2.2228,166.45,166.44,7.053678]
[1717446734624,6.6685,166.45,166.44,7.053678]
[1717446735744,6.6685,166.45,166.44,0.833678]
[1717446735930,6.6685,166.45,166.44,7.053678]
[1717446735931,13.3371,166.45,166.44,7.053678]
[1717446741931,22.2286,166.45,166.44,0.833678]
[1717446742144,22.2286,166.45,166.44,7.053678]
[1717446743337,22.2286,166.45,166.44,0.833678]
[1717446743534,22.2286,166.45,166.44,7.053678]
[1717446746346,13.3371,166.45,166.44,7.053678]
[1717446749944,13.3371,166.45,166.44,0.833678]
[1717446750156,13.3371,166.45,166.44,7.053678]
[1717446752959,22.2286,166.45,166.44,7.053678]
[1717446753632,22.2286,166.45,166.44,0.833678]
[1717446753857,22.2286,166.45,166.44,7.053678]
[1717446755376,22.2286,166.45,166.44,0.833678]
[1717446757755,22.23,166.44,166.43,6.22]
[1717446758055,2.2236,166.39,166.38,9.01976438]
[1717446758262,13.3419,166.39,166.34,6.0659]
[1717446758448,2.2241,166.36,166.34,6.0659]
[1717446758650,2.2241,166.36,166.35,12.2859]
[1717446759743,2.2241,166.36,166.35,6.0659]
[1717446760066,2.2241,166.36,166.35,12.2859]
[1717446760254,2.2243,166.34,166.33,6.0659]
[1717446760459,2.2243,166.34,166.33,57.2859]
[1717446761974,4.448,166.37,166.34,6.3771]
[1717446762149,2.2241,166.36,166.34,6.3771]
[1717446762479,2.2242,166.35,166.34,6.3771]
[1717446762678,2.2242,166.35,166.34,57.5971]
[1717446763750,2.2242,166.35,166.34,6.22]
[1717446763952,11.1199,166.37,166.34,6.22]
[1717446764172,4.4481,166.36,166.32,24.88]
[1717446764380,4.4481,166.36,166.35,6.22]
[1717446765285,6.6721,166.36,166.35,6.22]
[1717446766256,2.2243,166.34,166.32,24.88]
[1717446766456,2.2244,166.33,166.32,24.88]
[1717446766660,2.2244,166.33,166.32,31.1]
[1717446768582,2.2246,166.32,166.31,0.2]
[1717446768879,2.2246,166.32,166.31,6.42]
[1717446770770,6.6738,166.32,166.31,0.2]
[1717446771062,6.6738,166.32,166.31,6.42]
[1717446771772,6.6738,166.32,166.31,12.64]
[1717446771974,6.6738,166.32,166.31,6.42]
[1717446777784,22.2461,166.32,166.31,0.2]
[1717446777988,2.2251,166.28,166.27,0.833678]
[1717446778285,2.2251,166.28,166.27,7.053678]
[1717446778471,2.2251,166.28,166.27,0.833678]
[1717446778670,2.2251,166.28,166.27,7.053678]
[1717446779293,2.2251,166.28,166.27,0.833678]
[1717446779594,2.2251,166.28,166.27,7.053678]
[1717446779974,2.2251,166.28,166.27,0.833678]
[1717446780175,2.2251,166.28,166.27,7.053678]
[1717446790999,2.2251,166.28,166.27,58.296078]
[1717446791175,11.1227,166.33,166.27,58.296078]
[1717446791372,6.6735,166.33,166.32,12.44]
[1717446792108,2.2244,166.33,166.32,12.44]
[1717446795800,18.36660947,166.39,166.32,76.1]
[1717446795997,2.2241,166.36,166.34,6.5147]
[1717446796410,2.2241,166.36,166.35,45.0]
[1717446796585,2.2241,166.36,166.35,51.22]
[1717446797301,2.2241,166.36,166.35,57.2978]
[1717446802117,2.2237,166.39,166.37,6.2857]
[1717446802319,2.2237,166.39,166.38,57.44]
[1717446804300,0.2,166.44,166.33,6.409]
[1717446804495,7.44780947,166.44,166.4,6.22]
[1717446804798,15.5643,166.41,166.4,6.22]
[1717446805003,22.2345,166.41,166.4,8.78801721]
[1717446805317,6.6714,166.38,166.37,6.22]
[1717446806006,6.6714,166.38,166.37,2.56848101]
[1717446806007,22.238,166.38,166.37,2.56848101]
[1717446806200,22.238,166.38,166.32,24.88]
[1717446806201,2.2244,166.34,166.32,24.88]
[1717446806518,6.6719,166.37,166.33,8.78858143]
[1717446806702,13.3437,166.37,166.36,6.22]
[1717446806903,13.3437,166.37,166.36,8.78858143]
[1717446809413,13.3437,166.37,166.36,2.56858143]
[1717446809616,13.3437,166.37,166.36,8.78858143]
[1717446810731,2.2249,166.3,166.27,7.242678]
[1717446811023,2.2249,166.3,166.29,6.22]
[1717446812009,2.2249,166.3,166.29,51.22]
[1717446813433,2.2249,166.3,166.29,45.0]
[1717446813614,2.2249,166.3,166.29,6.22]
[1717446813813,2.2249,166.3,166.29,51.22]
[1717446817924,2.2249,166.3,166.29,45.0]
[1717446818108,2.2249,166.3,166.29,51.22]
[1717446820745,2.2249,166.3,166.29,53.47825407]
[1717446820912,6.6733,166.34,166.29,59.74285407]
[1717446821227,2.2245,166.33,166.3,47.25825407]
[1717446821431,2.2245,166.33,166.32,12.44]
[1717446821731,2.2245,166.33,166.32,59.69825407]
[1717446823536,2.2245,166.33,166.32,84.60675407]
[1717446823730,2.2245,166.33,166.32,84.94675407]
[1717446824814,2.2245,166.33,166.32,47.25825407]
[1717446825015,2.2245,166.33,166.32,78.35825407]
[1717446834240,2.2245,166.33,166.32,76.1]
[1717446834767,2.2245,166.33,166.32,78.35674725]
[1717446846167,2.2245,166.33,166.32,53.47674725]
[1717446848634,2.2245,166.33,166.32,2.25674725]
[1717446848961,2.2247,166.31,166.27,0.833678]
[1717446849164,2.2247,166.31,166.3,6.22]
[1717446849474,2.2247,166.31,166.3,8.4761168]
[1717446850168,2.2247,166.31,166.3,53.4761168]